bitfinex/quotes_ETHUSD_20241122
["timestamp","ask_amount","ask_price","bid_price","bid_amount"]
[1732261395439,0.8205,3373.0,3371.4,0.2951]
[1732261397681,0.8205,3373.0,3371.5,0.02965589]
[1732261397978,0.8205,3373.0,3371.9,0.2951]
[1732261398652,0.8205,3373.0,3372.3,0.2951]
[1732261398978,0.8205,3373.0,3372.5,0.2951]
[1732261399184,0.8205,3373.0,3372.7,0.2951]
[1732261400751,3.47034664,3374.2,3372.7,0.2951]
[1732261401076,0.8233,3374.0,3372.7,0.2951]
[1732261401262,0.8233,3374.0,3372.1,0.2951]
[1732261401467,0.8233,3374.0,3372.3,0.2951]
[1732261401778,0.8233,3374.0,3372.4,0.02964534]
[1732261402282,0.8233,3374.0,3373.0,0.2951]
[1732261402585,0.8233,3374.0,3372.9,3.0]
[1732261402586,0.8233,3374.0,3373.2,0.2951]
[1732261403459,0.8233,3374.0,3373.3,0.2951]
[1732261404488,0.8233,3374.0,3372.6,0.2951]
[1732261405458,0.8233,3374.0,3372.3,0.2951]
[1732261405667,0.8233,3374.0,3372.5,0.2951]
[1732261406144,0.8233,3374.0,3372.5,0.68291851]
[1732261406482,0.8233,3374.0,3372.7,0.2951]
[1732261407285,0.8233,3374.0,3372.4,0.2951]
[1732261408060,0.8233,3374.0,3372.6,0.2951]
[1732261408250,0.8233,3374.0,3372.8,0.2951]
[1732261408968,0.8233,3374.0,3372.9,0.02964543]
[1732261409169,0.8233,3373.9,3372.8,0.2951]
[1732261409378,0.8233,3373.9,3372.9,0.2951]
[1732261410250,0.8233,3373.9,3372.6,0.2951]
[1732261410458,0.8233,3373.9,3372.8,0.2951]
[1732261410762,0.8233,3373.9,3373.0,0.2951]
[1732261411775,0.8233,3373.9,3372.9,0.2951]
[1732261412174,0.8233,3373.9,3373.1,0.2951]
[1732261414281,0.8233,3373.9,3372.7,0.2951]
[1732261414492,0.8233,3373.9,3373.2,0.2951]
[1732261416096,0.8233,3373.9,3373.4,0.2951]
[1732261417175,0.8233,3373.9,3373.2,0.2951]
[1732261417489,0.8233,3373.9,3373.4,0.2951]
[1732261417651,0.8233,3373.9,3373.1,0.55]
[1732261417855,0.8233,3373.9,3373.4,0.2951]
[1732261418091,0.02964135,3373.8,3373.4,0.2951]
[1732261418291,0.7559,3373.7,3373.4,0.2951]
[1732261418475,0.7559,3373.5,3373.4,0.2951]
[1732261418891,0.7559,3373.5,3372.4,0.3247453]
[1732261419396,0.7559,3373.5,3372.6,0.2951]
[1732261419609,0.78554135,3373.4,3372.6,0.2951]
[1732261420387,0.7559,3373.4,3372.0,0.2951]
[1732261420575,0.7559,3373.4,3372.3,0.2951]
[1732261420778,0.7559,3373.4,3372.4,0.02964949]
[1732261420986,0.7559,3373.4,3372.3,0.2951]
[1732261421207,0.7559,3373.4,3372.3,0.32474932]
[1732261421373,0.7559,3373.4,3372.3,0.2951]
[1732261421578,0.7559,3373.4,3372.2,0.2951]
[1732261422063,0.7559,3373.4,3372.6,0.2951]
[1732261422262,0.7559,3373.4,3372.8,0.2951]
[1732261423259,0.7559,3373.4,3372.6,0.2951]
[1732261423882,0.7559,3373.4,3372.8,0.2951]
[1732261424865,0.7559,3373.4,3372.6,0.2951]
[1732261425163,0.7559,3373.4,3372.8,0.2951]
[1732261426198,0.7559,3373.4,3372.9,0.2951]
[1732261427304,0.7559,3373.4,3372.8,0.2951]
[1732261428000,0.7559,3373.4,3372.9,0.55]
[1732261428188,0.7559,3373.4,3373.0,0.2951]
[1732261429002,0.02964135,3373.3,3373.0,0.2951]
[1732261429208,0.7586,3373.3,3373.1,0.2951]
[1732261430307,0.7586,3373.3,3372.6,0.2951]
[1732261430608,0.7586,3373.3,3372.8,0.2951]
[1732261431305,0.7586,3374.1,3373.2,0.2951]
[1732261431505,0.02964135,3374.0,3373.2,0.2951]
[1732261431666,0.7586,3373.9,3373.2,0.2951]
[1732261431865,0.7586,3373.7,3373.2,0.2951]
[1732261432292,0.7586,3373.5,3372.6,0.2951]
[1732261432917,0.7586,3373.9,3373.5,0.2951]
[1732261433631,0.7586,3374.7,3373.8,0.2951]
[1732261434109,0.52817036,3375.6,3373.8,0.2951]
[1732261434110,0.7586,3374.5,3373.8,0.2951]
[1732261434293,0.7586,3374.3,3373.8,0.2951]
[1732261434622,0.7586,3374.1,3373.9,0.2951]
[1732261435718,0.7586,3374.1,3373.4,0.2951]
[1732261435884,0.78824135,3374.0,3373.4,0.2951]
[1732261436279,0.7586,3374.0,3373.4,0.2951]
[1732261436720,0.7586,3374.0,3373.5,0.2951]
[1732261437257,0.02964135,3373.9,3373.5,0.2951]
[1732261437760,0.02964135,3373.9,3373.2,0.2951]
[1732261437933,0.7586,3374.0,3373.2,0.2951]
[1732261440234,0.38203454,3374.8,3372.8,1.38165702]
[1732261440239,0.78824135,3373.9,3373.3,0.2951]
[1732261440435,0.7586,3373.9,3373.3,0.2951]
[1732261441248,0.7586,3373.9,3373.3,3.2951]
[1732261441486,0.7586,3373.9,3373.3,0.2951]
[1732261441640,0.7586,3373.9,3373.3,3.2951]
[1732261441842,0.7586,3374.2,3373.5,0.2951]
[1732261444474,0.02964135,3374.1,3373.2,0.2951]
[1732261444786,0.7586,3374.2,3373.4,0.2951]
[1732261445143,0.7501,3374.0,3373.4,0.2951]
[1732261445349,0.02964135,3373.9,3373.4,0.2951]
[1732261445789,0.02964135,3373.9,3373.5,0.2951]
[1732261445956,0.7501,3373.8,3373.5,0.2951]
[1732261446280,0.7501,3373.8,3372.1,0.02964167]
[1732261446281,0.7501,3373.6,3373.1,0.2951]
[1732261446498,0.7501,3373.4,3373.1,0.2951]
[1732261446677,0.02964135,3373.3,3373.1,0.2951]
[1732261447488,0.7501,3373.4,3373.1,0.2951]
[1732261447900,0.7501,3373.4,3372.4,0.2951]
[1732261448872,0.77974135,3373.4,3372.4,0.2951]
[1732261449367,0.7501,3373.0,3371.9,0.2951]
[1732261449693,0.42204466,3372.9,3371.9,0.2951]
[1732261449869,0.7501,3373.0,3372.0,0.02965232]
[1732261450469,0.7501,3373.0,3372.2,0.2951]
[1732261450667,0.7501,3373.0,3372.6,0.2951]
[1732261450968,0.7501,3373.9,3372.6,0.2951]
[1732261451267,0.77974135,3373.9,3372.6,0.2951]
[1732261451686,0.77974135,3373.9,3372.5,0.55]
[1732261451898,0.7501,3373.9,3372.6,1.11414864]
[1732261452184,0.45465015,3373.8,3372.6,1.0845]
[1732261452393,0.7787,3373.7,3372.6,1.0845]
[1732261452805,0.7787,3373.7,3372.8,0.2951]
[1732261452970,0.7787,3373.7,3373.0,0.2951]
[1732261453170,0.02964135,3373.6,3373.0,3.2951]
[1732261453483,0.7787,3373.7,3373.0,3.2951]
[1732261453994,0.7787,3373.7,3372.7,0.2951]
[1732261454196,0.7787,3373.7,3373.1,0.2951]
[1732261454807,0.02964135,3373.6,3373.1,0.2951]
[1732261455220,0.7787,3373.5,3372.3,0.2951]
[1732261455516,0.02964135,3373.6,3372.3,0.2951]
[1732261455517,0.7787,3373.3,3372.3,0.2951]
[1732261455692,0.02964135,3373.2,3372.3,0.2951]
[1732261455893,0.7787,3373.3,3372.3,0.2951]
[1732261457297,0.02964135,3373.2,3372.3,0.2951]
[1732261458114,0.7787,3373.1,3372.0,0.2951]
[1732261458269,0.7787,3372.9,3372.0,0.2951]
[1732261458907,0.7787,3372.9,3372.0,0.2451]
[1732261459415,0.02964135,3372.8,3372.2,0.1951]
[1732261459780,0.7787,3372.9,3372.2,0.1951]
[1732261460713,0.7787,3372.9,3372.3,0.1951]
[1732261461493,0.7787,3372.9,3372.2,0.1951]
[1732261462187,0.72680704,3372.9,3372.2,0.1951]
[1732261462576,0.72680704,3372.9,3372.0,0.1951]
[1732261462785,0.72680704,3372.9,3372.2,0.1951]
[1732261463781,0.72680704,3372.9,3372.0,0.1951]
[1732261464318,1.14652241,3372.9,3372.0,0.1951]
[1732261464519,0.41971537,3372.9,3372.0,0.1951]
[1732261464895,0.41971537,3372.9,3371.7,0.1951]
[1732261465078,0.7787,3372.8,3371.7,3.1951]
[1732261465283,0.7787,3372.8,3371.9,0.1951]
[1732261465689,3.47034664,3372.8,3371.9,0.1951]
[1732261466319,3.47034664,3372.8,3371.8,0.1951]
[1732261466489,0.34703466,3372.7,3371.8,0.1951]
[1732261467186,0.34703466,3372.7,3371.4,0.1951]
[1732261468606,0.7621,3372.6,3371.4,0.1951]
[1732261468816,0.7621,3372.5,3371.6,0.1951]
[1732261469419,4.23244664,3372.5,3371.6,0.1951]
[1732261469727,4.23244664,3372.5,3371.4,0.1951]
[1732261469886,4.70148612,3372.5,3371.4,0.1951]
[1732261471343,0.7621,3372.4,3371.4,0.1951]
[1732261473614,0.7621,3372.4,3371.6,0.1951]
[1732261474327,2.96464,3373.1,3371.6,0.1951]
[1732261474328,3.47034664,3372.2,3371.6,0.1951]
[1732261474514,0.7621,3372.1,3371.4,0.1951]
[1732261482433,0.7621,3372.1,3371.6,0.1951]
[1732261483024,0.7621,3372.1,3371.6,3.1951]
[1732261484066,0.7621,3372.1,3371.3,0.1507056]
[1732261484067,0.7621,3372.1,3371.4,0.1951]
[1732261485072,0.7621,3372.1,3371.8,0.1951]
[1732261486167,0.7621,3372.1,3371.4,0.1951]
[1732261486373,0.7621,3372.1,3371.8,0.1951]
[1732261489840,0.7946,3372.4,3371.9,0.1951]
[1732261490739,0.79189945,3372.4,3372.1,0.1951]
[1732261491076,0.79189945,3372.4,3372.3,0.1951]
[1732261491976,0.79189945,3372.4,3372.1,0.1951]
[1732261496941,0.79189945,3372.4,3371.8,0.1951]
[1732261497162,0.79189945,3372.4,3372.1,0.1951]
[1732261501483,0.7919,3373.8,3372.0,3.0]
[1732261501647,1.64284765,3373.0,3372.1,0.1451]
[1732261501846,0.7919,3372.9,3372.3,0.1451]
[1732261502248,0.7919,3372.9,3372.3,3.1451]
[1732261502748,0.7919,3372.9,3372.3,0.1451]
[1732261502963,0.7919,3372.9,3372.3,3.1451]
[1732261503686,0.7919,3372.9,3372.3,0.1451]
[1732261503985,0.7919,3372.9,3372.3,3.1451]
[1732261504188,1.03537477,3372.9,3372.4,0.1451]
[1732261505052,1.03537477,3372.9,3371.8,0.1451]
[1732261505362,1.64284765,3372.4,3371.8,0.1451]
[1732261505684,0.7919,3372.3,3371.8,3.1451]
[1732261505851,0.7919,3372.3,3371.8,0.1451]
[1732261506186,0.7919,3372.3,3371.6,0.1451]
[1732261506391,0.7919,3372.3,3371.5,0.58750645]
[1732261506392,0.7919,3372.3,3372.1,0.1451]
[1732261507455,0.7919,3372.3,3372.2,0.1451]
[1732261508373,1.03537477,3372.3,3371.5,0.1451]
[1732261508583,0.7919,3372.3,3371.5,0.1451]
[1732261511980,2.41754765,3372.6,3372.1,0.1451]
[1732261512291,0.7747,3372.6,3372.1,0.1451]
[1732261513063,2.41754765,3372.6,3372.1,0.1451]
[1732261513264,0.7747,3372.5,3372.1,0.1451]
[1732261513869,0.7747,3372.2,3372.1,0.1451]
[1732261514069,0.7747,3372.2,3371.7,0.1451]
[1732261514070,1.01645476,3372.2,3371.7,0.1451]
[1732261514376,1.64284765,3372.0,3371.7,0.1451]
[1732261514565,2.41754765,3372.2,3371.7,0.1451]
[1732261515056,0.7747,3371.9,3371.4,0.1451]
[1732261515400,0.7747,3371.9,3371.7,0.1451]
[1732261516299,0.7747,3371.9,3371.6,0.1451]
[1732261517367,0.7747,3371.9,3371.4,0.1451]
[1732261517599,0.7747,3371.9,3371.6,0.1451]
[1732261518570,0.7747,3371.9,3371.4,0.1451]
[1732261518771,0.7747,3371.9,3371.3,0.1507056]
[1732261518772,0.7747,3371.9,3371.6,0.1451]
[1732261519359,0.7747,3371.8,3371.6,0.1451]
[1732261519598,1.19930928,3371.7,3371.6,0.1451]
[1732261520765,1.19930928,3371.7,3371.4,0.1451]
[1732261521073,0.42460928,3371.7,3371.4,0.1451]
[1732261521270,1.1643002,3371.6,3371.4,0.1451]
[1732261522612,4.63569295,3371.6,3371.4,0.1451]
[1732261522815,4.24609275,3371.6,3371.4,0.1451]
[1732261527022,0.7747,3371.6,3371.4,0.1451]
[1732261527175,3.47139275,3372.6,3371.4,0.55291851]
[1732261527513,3.47139275,3372.0,3371.4,0.1451]
[1732261528181,0.01,3373.1,3371.4,0.1451]
[1732261528512,3.47139275,3372.2,3371.4,0.1451]
[1732261528808,3.47139275,3371.9,3371.4,0.1451]
[1732261530117,0.774,3371.8,3371.4,0.1451]
[1732261530434,0.774,3371.8,3371.3,0.1507056]
[1732261530435,1.19853928,3371.8,3371.3,0.1507056]
[1732261530598,1.19853928,3371.8,3371.4,0.2951]
[1732261531120,0.42453928,3371.8,3371.4,0.2951]
[1732261531291,0.774,3371.7,3371.4,0.2951]
[1732261531625,0.4669932,3371.6,3371.4,0.2951]
[1732261532886,0.774,3371.7,3371.4,0.2951]
[1732261534896,0.774,3372.1,3371.4,0.2951]
[1732261536092,3.47139275,3372.2,3371.3,0.1507056]
[1732261536290,0.774,3371.4,3371.3,0.4458056]
[1732261536690,2.41799203,3371.4,3371.3,0.4458056]
[1732261537806,1.64399203,3371.4,3371.3,0.4458056]
[1732261538642,0.774,3371.6,3371.3,0.4458056]
[1732261539010,3.47282315,3371.8,3371.3,0.4458056]
[1732261539447,3.89750547,3371.8,3371.3,0.4458056]
[1732261539635,0.774,3371.7,3371.3,0.4458056]
[1732261540335,3.47282315,3371.4,3371.3,0.4458056]
[1732261541121,4.24682315,3371.4,3371.3,0.4458056]
[1732261552740,0.773,3371.7,3371.3,0.4458056]
[1732261553005,0.01,3372.7,3371.3,0.4458056]
[1732261553293,0.773,3372.1,3371.3,0.4458056]
[1732261553967,3.47282315,3372.2,3371.3,0.4458056]
[1732261554168,3.47282315,3372.2,3371.5,0.2951]
[1732261554368,3.47282315,3372.2,3371.7,0.2951]
[1732261558863,3.47282315,3372.2,3371.6,0.7976]
[1732261559408,3.47282315,3372.2,3371.7,0.2951]
[1732261559868,0.773,3372.6,3371.7,0.2951]
[1732261560073,4.24582315,3372.9,3371.9,0.2951]
[1732261560284,3.47282315,3372.6,3372.1,0.2951]
[1732261560496,0.773,3372.9,3371.3,0.1507056]
[1732261560497,3.47282315,3372.2,3371.7,0.7976]
[1732261560674,0.773,3372.3,3371.8,0.2951]
[1732261561213,0.55,3372.2,3371.3,0.9483056]
[1732261561370,1.6435882,3371.4,3371.3,0.9483056]
[1732261561576,1.6435882,3371.4,3371.3,1.2434056]
[1732261562674,3.47299155,3371.7,3371.3,1.2434056]
[1732261562874,3.89759071,3371.7,3371.3,0.4458056]
[1732261564373,3.47299155,3371.4,3371.3,0.4458056]
[1732261566175,4.79599155,3371.4,3371.3,0.1507056]
[1732261566377,5.31805062,3371.4,3371.3,0.1507056]
[1732261572612,5.3101902,3371.4,3371.3,0.1507056]
[1732261577295,0.7517,3371.8,3371.3,0.1507056]
[1732261577529,3.47299155,3371.5,3371.3,0.1507056]
[1732261578299,3.47299155,3371.5,3371.3,0.9163056]
[1732261579992,0.7517,3372.0,3371.3,0.9163056]
[1732261579993,0.55,3371.9,3371.3,0.9163056]
[1732261580193,3.47299155,3371.7,3371.3,0.9163056]
[1732261581336,3.47299155,3372.0,3371.3,0.9163056]
[1732261581499,3.47299155,3372.0,3371.4,0.21717939]
[1732261581697,3.47299155,3372.3,3371.5,0.2171398]
[1732261582048,3.47299155,3372.3,3371.6,0.21711752]
[1732261582204,3.89546071,3372.3,3371.4,0.7656]
[1732261582540,3.47299155,3371.7,3371.3,0.1507056]
[1732261583772,3.47299155,3371.4,3371.3,0.1507056]
[1732261587559,3.47299155,3371.7,3371.3,0.1507056]
[1732261587773,0.42538916,3371.6,3371.3,0.1507056]
[1732261587924,3.47299155,3371.7,3371.3,0.1507056]
[1732261588127,3.0,3372.1,3371.4,0.5332]
[1732261588128,7.25389155,3372.1,3371.4,0.5332]
[1732261588330,0.77186076,3372.0,3371.4,0.5332]
[1732261588663,4.25389155,3372.4,3371.4,0.5332]
[1732261589744,4.25389155,3372.4,3371.5,0.2951]
[1732261589745,3.47299155,3372.1,3371.5,0.2951]
[1732261591744,0.55,3372.0,3371.5,0.2951]
[1732261592348,0.95229916,3372.0,3371.5,0.2951]
[1732261595376,0.55,3371.5,3371.3,0.1507056]
[1732261595754,4.25389155,3371.4,3371.3,0.1507056]
[1732261595980,0.2302,3370.5,3370.2,0.8287]
[1732261596346,0.55,3370.4,3370.3,0.2951]
[1732261596847,0.2302,3370.5,3370.3,0.2951]
[1732261602052,3.47299155,3371.0,3370.3,0.2951]
[1732261602255,1.65079916,3370.9,3370.3,0.2951]
[1732261602753,0.89729916,3370.9,3370.3,0.2951]
[1732261604297,0.55,3371.1,3370.3,0.2951]
[1732261604597,0.55,3371.1,3369.8,0.2951]
[1732261604797,0.55,3371.1,3370.2,1.0466]
[1732261606185,0.7535,3371.0,3370.2,1.0466]
[1732261606365,0.55,3370.9,3370.2,1.0466]
[1732261609385,0.55,3371.1,3370.3,0.7515]
[1732261609587,0.55,3371.1,3370.4,0.2951]
[1732261614613,3.47299155,3370.8,3370.4,0.2951]
[1732261614783,0.7535,3370.7,3369.6,0.7515]
[1732261614985,1.65079916,3370.7,3369.7,0.2951]
[1732261615904,0.55,3370.7,3369.8,1.0466]
[1732261616217,0.55,3370.7,3369.1,0.59529445]
[1732261616218,4.22649155,3371.1,3370.4,0.2951]
[1732261616376,0.45737907,3371.0,3370.4,0.2951]
[1732261617025,3.45737907,3371.0,3370.4,0.2951]
[1732261617177,3.45737907,3371.0,3370.1,0.2951]
[1732261617379,0.55,3370.9,3370.1,0.2951]
[1732261617711,0.55,3370.7,3370.1,0.2951]
[1732261617912,0.55,3370.5,3370.1,0.2951]
[1732261619419,0.55,3370.7,3370.1,0.2951]
[1732261619589,0.55,3370.7,3369.3,0.02967591]
[1732261619590,0.76,3371.2,3370.3,0.2951]
[1732261620277,0.42329916,3371.0,3370.3,0.2951]
[1732261621119,0.55,3370.9,3370.3,0.2951]
[1732261623489,0.42329916,3371.0,3370.3,0.2951]
[1732261623835,4.02299155,3371.1,3370.3,0.2951]
[1732261627400,3.0,3371.0,3370.3,0.2951]
[1732261627604,3.47299155,3370.7,3370.3,0.2951]
[1732261630125,4.30149155,3370.7,3370.4,0.2951]
[1732261630445,0.34729916,3370.6,3370.4,0.2951]
[1732261631008,0.34729916,3370.6,3370.5,0.2951]
[1732261632163,0.34729916,3370.6,3370.1,0.2951]
[1732261632315,0.46487907,3370.5,3370.1,0.2951]
[1732261635445,2.47601671,3370.7,3370.1,0.2951]
[1732261636882,1.64518375,3370.2,3370.1,0.2951]
[1732261638266,1.64518375,3370.2,3368.2,0.01]
[1732261638267,4.6207675,3370.2,3369.1,0.8297]
[1732261638568,1.64518375,3369.2,3369.1,0.8297]
[1732261638740,3.47753914,3369.5,3369.1,0.8297]
[1732261639336,3.47753914,3369.5,3369.2,0.2959]
[1732261640444,3.47753914,3369.3,3368.9,0.2959]
[1732261641441,3.47753914,3369.7,3368.4,0.2959]
[1732261641652,3.47753914,3369.7,3368.6,0.2959]
[1732261641850,3.47753914,3369.7,3369.0,0.2959]
[1732261642069,3.47753914,3369.7,3369.2,0.2959]
[1732261642268,3.47753914,3370.0,3369.3,0.8297]
[1732261642480,3.47753914,3370.0,3368.3,3.37407193]
[1732261642481,3.47753914,3370.0,3369.6,0.2959]
[1732261644147,3.47753914,3370.3,3369.7,1.1256]
[1732261645073,3.47753914,3370.9,3370.0,0.8297]
[1732261645386,3.47753914,3371.2,3370.2,0.8297]
[1732261645606,3.47753914,3371.2,3370.3,0.2959]
[1732261645887,3.87179378,3371.2,3370.3,0.2959]
[1732261646270,3.47753914,3370.9,3370.3,0.2959]
[1732261648447,3.47753914,3370.6,3370.3,0.2959]
[1732261649582,3.47753914,3370.6,3369.9,0.2959]
[1732261651594,1.20285464,3371.2,3369.9,0.2959]
[1732261651595,3.47753914,3370.2,3369.9,0.2959]
[1732261651778,3.47753914,3370.2,3369.3,0.2959]
[1732261654596,0.8086,3370.5,3369.6,0.2959]
[1732261654902,3.47753914,3370.6,3369.8,0.2959]
[1732261655251,0.34775391,3370.5,3369.8,0.2959]
[1732261655492,3.47753914,3370.6,3369.8,0.2959]
[1732261656053,3.47753914,3370.6,3370.0,0.2959]
[1732261656466,4.27463914,3370.2,3369.2,0.2959]
[1732261656687,0.42746391,3370.1,3369.2,0.2959]
[1732261656893,4.27463914,3370.2,3369.2,0.2959]
[1732261660065,3.47753914,3369.8,3369.2,0.2959]
[1732261661402,0.7971,3369.7,3369.3,0.2959]
[1732261661760,3.0,3370.5,3369.3,0.2959]
[1732261661761,3.47753914,3369.9,3369.3,0.2959]
[1732261662536,3.47753914,3369.9,3368.9,0.2959]
[1732261664338,3.47753914,3369.5,3368.9,0.2959]
[1732261664547,3.82529305,3369.5,3368.9,0.2959]
[1732261664727,3.47753914,3369.5,3368.9,0.2959]
[1732261667524,0.7947,3369.4,3368.9,0.2959]
[1732261668119,3.47753914,3369.5,3368.9,0.2959]
[1732261671441,3.47753914,3369.1,3368.2,3.8053]
[1732261671637,0.34775391,3369.0,3368.3,0.2959]
[1732261671944,3.47753914,3369.1,3368.3,0.2959]
[1732261672555,3.47753914,3369.1,3368.5,0.2959]
[1732261674161,3.47753914,3369.5,3368.7,0.2959]
[1732261675275,3.47753914,3369.5,3369.0,0.2959]
[1732261675566,3.47753914,3369.8,3369.0,0.2959]
[1732261675924,3.47753914,3369.8,3369.2,0.2959]
[1732261676319,4.27223914,3370.1,3369.2,0.2959]
[1732261676565,3.47753914,3369.8,3369.2,0.2959]
[1732261677412,3.47753914,3369.8,3369.3,0.2959]
[1732261677569,3.47753914,3369.8,3369.4,0.8053]
[1732261677772,3.47753914,3369.8,3369.5,0.2959]
[1732261679184,0.42722391,3370.0,3369.5,0.2959]
[1732261679400,0.7947,3370.7,3369.7,0.2959]
[1732261679612,0.7947,3370.7,3368.8,0.32272185]
[1732261679613,3.47753914,3370.8,3369.9,0.2959]
[1732261679806,0.42722391,3370.6,3369.9,0.2959]
[1732261680008,3.47753914,3370.5,3369.9,0.2959]
[1732261680224,0.7947,3370.4,3369.9,0.2959]
[1732261680379,3.47753914,3370.1,3369.9,0.2959]
[1732261680579,3.47753914,3370.1,3369.2,0.2959]
[1732261680580,0.55,3369.9,3369.2,0.2959]
[1732261680842,0.7947,3369.4,3369.2,0.2959]
[1732261681534,0.7947,3369.4,3367.9,0.1507056]
[1732261681535,0.55,3369.3,3368.9,0.2959]
[1732261681827,3.47753914,3369.1,3368.9,0.2959]
[1732261682127,0.7947,3369.0,3368.2,0.2959]
[1732261682332,3.47753914,3368.7,3368.2,0.2959]
[1732261683423,3.47753914,3368.7,3368.3,0.2959]
[1732261683424,0.55,3368.6,3368.3,0.2959]
[1732261684324,4.82223914,3368.4,3368.3,0.2959]
[1732261684640,0.55,3368.3,3367.9,0.1507056]
[1732261684923,3.47753914,3368.1,3367.9,0.1507056]
[1732261685291,0.55,3368.3,3367.9,0.1507056]
[1732261685508,1.03222391,3368.3,3367.9,0.1507056]
[1732261686223,0.48222391,3368.3,3367.9,0.1507056]
[1732261692336,4.3269,3368.0,3367.9,0.1507056]
[1732261692536,1.3269,3368.0,3367.9,0.1507056]
[1732261694696,7.80443914,3368.0,3367.9,0.1507056]
[1732261696344,1.3269,3368.0,3367.9,0.1507056]
[1732261703251,1.3269,3368.0,3367.0,0.2959]
[1732261703252,0.55,3367.6,3367.0,0.2959]
[1732261703545,0.55,3367.2,3367.0,0.2959]
[1732261703858,3.47753914,3367.4,3366.5,0.2959]
[1732261704075,3.47753914,3367.4,3366.7,0.2959]
[1732261704346,3.55,3367.7,3366.9,0.2959]
[1732261704507,1.37371291,3367.7,3366.9,0.2959]
[1732261704709,4.25443914,3367.8,3365.9,3.0]
[1732261704710,3.47753914,3367.8,3367.0,0.2959]
[1732261704943,3.47753914,3367.8,3367.1,1.1113]
[1732261705312,0.34775391,3367.7,3367.1,1.1113]
[1732261706423,3.47753914,3367.8,3367.1,1.1113]
[1732261707159,3.47753914,3367.8,3367.1,0.2959]
[1732261707366,3.47753914,3367.8,3367.3,0.2959]
[1732261710046,3.47753914,3367.4,3367.0,0.2959]
[1732261710240,3.47753914,3367.4,3365.5,0.8116]
[1732261710442,3.47753914,3367.0,3365.6,0.21804525]
[1732261710626,0.7768,3366.9,3365.8,0.8116]
[1732261710854,1.20223391,3366.9,3365.9,0.21804525]
[1732261711054,1.20223391,3366.9,3366.0,0.51394525]
[1732261711252,3.47753914,3366.6,3366.2,0.2959]
[1732261711563,3.47753914,3366.6,3366.4,0.2959]
[1732261711773,0.34775391,3366.5,3366.4,0.2959]
[1732261712192,0.34775391,3366.5,3366.0,0.8116]
[1732261712488,0.34775391,3366.5,3365.9,0.2959]
[1732261712489,3.47753914,3366.3,3365.9,0.2959]
[1732261713151,3.0,3366.2,3364.6,0.8116]
[1732261713357,3.0,3366.2,3364.8,0.2959]
[1732261713358,3.55,3366.2,3364.8,0.2959]
[1732261713567,0.72543391,3366.1,3365.0,0.2959]
[1732261713788,3.55,3366.2,3365.0,0.2959]
[1732261713789,0.77529731,3366.0,3365.0,0.2959]
[1732261714093,3.47753914,3365.9,3365.0,0.2959]
[1732261714278,1.3268,3365.8,3365.0,0.2959]
[1732261714634,0.55,3365.8,3364.9,0.8116]
[1732261714897,3.47753914,3365.9,3364.9,0.8116]
[1732261715056,0.42543391,3365.8,3364.9,0.8116]
[1732261715958,0.55,3365.7,3364.9,0.8116]
[1732261716267,0.7768,3365.6,3364.1,0.8116]
[1732261716469,0.55,3365.4,3363.8,0.32272185]
[1732261716799,4.25433914,3365.5,3364.6,0.8116]
[1732261717395,0.55,3365.4,3364.6,0.8116]
[1732261718081,3.47753914,3365.1,3364.3,0.8116]
[1732261721071,0.7768,3365.0,3364.3,0.8116]
[1732261722076,3.47753914,3364.8,3364.3,0.8116]
[1732261722770,3.47753914,3364.8,3363.9,0.8272]
[1732261723176,0.55,3365.4,3364.5,0.9779056]
[1732261723177,0.8146,3365.3,3364.5,0.9779056]
[1732261724705,3.47753914,3365.2,3364.5,0.9779056]
[1732261725906,3.47753914,3365.5,3364.6,0.02971897]
[1732261726110,3.47753914,3365.5,3364.7,0.8272]
[1732261727003,3.47753914,3365.7,3364.7,0.8272]
[1732261727210,0.8146,3365.3,3364.7,0.8272]
[1732261728193,0.8146,3365.3,3364.5,0.1507056]
[1732261728386,3.47753914,3365.1,3364.5,0.1507056]
[1732261729649,0.8146,3365.3,3364.5,0.1507056]
[1732261733025,3.8146,3365.3,3364.5,0.1507056]
[1732261733314,0.72921391,3365.2,3364.5,0.1507056]
[1732261734420,3.47753914,3365.0,3364.5,0.1507056]
[1732261736816,0.8153,3364.9,3364.5,0.1507056]
[1732261737017,0.55,3364.8,3364.5,0.1507056]
[1732261737858,3.47753914,3364.6,3364.5,0.1507056]
[1732261738059,4.51182305,3364.6,3364.5,0.1507056]
[1732261738560,5.32712305,3364.6,3364.5,0.1507056]
[1732261739861,0.48428391,3364.6,3364.5,0.6584056]
[1732261740012,3.47753914,3365.2,3364.6,0.2959]
[1732261740213,3.47753914,3365.5,3364.6,0.2959]
[1732261740456,3.47753914,3365.2,3364.6,0.2959]
[1732261741171,3.47753914,3365.2,3363.3,0.03972378]
[1732261741328,0.8153,3365.3,3363.2,0.2959]
[1732261741329,3.47753914,3364.8,3363.2,0.2959]
[1732261741731,0.55,3364.7,3363.2,0.2959]
[1732261742040,0.40275391,3364.6,3363.2,0.2959]
[1732261742431,0.55,3364.5,3362.8,0.02972836]
[1732261742970,0.55,3364.5,3363.2,0.2959]
[1732261743164,0.39527539,3364.4,3363.4,0.2959]
[1732261743380,3.0,3364.9,3364.0,0.2959]
[1732261743381,0.55,3364.8,3364.0,0.2959]
[1732261743529,0.70275391,3364.8,3364.2,0.2959]
[1732261743733,3.47753914,3365.0,3364.4,1.0636]
[1732261743961,0.34775391,3364.9,3364.4,1.0636]
[1732261744355,0.8153,3364.8,3363.9,0.7677]
[1732261744558,0.8153,3364.8,3364.0,0.2959]
[1732261745364,0.55,3364.7,3364.0,0.2959]
[1732261745677,0.17130539,3364.6,3364.0,0.2959]
[1732261746177,0.55,3364.8,3364.1,1.0636]
[1732261747075,0.34775391,3364.9,3364.1,1.0636]
[1732261747253,0.38252931,3364.8,3364.1,1.0636]
[1732261747453,0.38252931,3364.8,3363.4,3.0]